fUST/lending_fUST_20240806
["ID","MTS","AMOUNT","RATE_DAILY","PERIOD"]
[334286740,1722894649398,-500.0,0.00041095,31]
[334286741,1722894649408,-500.0,0.00041095,31]
[334286742,1722894649418,-510.52449572,0.00041095,31]
[334286743,1722894649428,-500.0,0.00041095,31]
[334286744,1722894649438,-500.0,0.00041095,31]
[334286745,1722894649448,-578.79,0.00041095,31]
[334286746,1722894649458,-3866.68,0.00041095,31]
[334286747,1722894649468,-500.0,0.00041095,31]
[334286748,1722894649477,-500.0,0.00041095,31]
[334286749,1722894649487,-500.0,0.00041095,31]
[334286750,1722894649496,-500.0,0.00041095,31]
[334286751,1722894649506,-500.0,0.00041095,31]
[334286752,1722894649515,-500.0,0.00041095,31]
[334286753,1722894649524,-500.0,0.00041095,31]
[334286754,1722894649534,-500.0,0.00041095,31]
[334286755,1722894649543,-500.0,0.00041095,31]
[334286756,1722894649552,-500.0,0.00041095,31]
[334286757,1722894649561,-173.62370171,0.00041095,31]
[334286758,1722894649571,-500.0,0.00041095,31]
[334286759,1722894649581,-500.0,0.00041095,31]
[334286760,1722894649591,-500.0,0.00041095,31]
[334286761,1722894649600,-500.0,0.00041095,31]
[334286762,1722894649610,-500.0,0.00041095,31]
[334286763,1722894649619,-500.0,0.00041095,31]
[334286764,1722894649628,-184.08299458,0.00041095,31]
[334286765,1722894649638,-500.0,0.00041095,31]
[334286766,1722894649647,-500.0,0.00041095,31]
[334286767,1722894649656,-500.0,0.00041095,31]
[334286768,1722894649665,-500.0,0.00041095,31]
[334286769,1722894649674,-500.0,0.00041095,31]
[334286770,1722894649684,-500.0,0.00041095,31]
[334286771,1722894649693,-500.0,0.00041095,31]
[334286772,1722894649702,-500.0,0.00041095,31]
[334286773,1722894649712,-500.0,0.00041095,31]
[334286774,1722894649721,-500.71650985,0.00041095,31]
[334286775,1722894649730,-500.0,0.00041095,10]
[334286776,1722894649739,-500.0,0.00041095,31]
[334286777,1722894649748,-500.0,0.00041095,31]
[334286778,1722894649757,-500.0,0.00041095,31]
[334286779,1722894649766,-500.0,0.00041095,31]
[334286780,1722894649775,-500.0,0.00041095,31]
[334286781,1722894649785,-474.85695284,0.00041095,31]
[334286782,1722894649794,-621.43655004,0.00041095,31]
[334286783,1722894649803,-500.0,0.00041095,31]
[334286784,1722894649812,-500.0,0.00041095,31]
[334286785,1722894649822,-500.0,0.00041095,31]
[334286786,1722894649831,-500.0,0.00041095,31]
[334286787,1722894649841,-500.0,0.00041095,31]
[334286788,1722894649851,-3904.12,0.00041095,31]
[334286789,1722894649861,-500.0,0.00041095,31]
[334286790,1722894649871,-500.0,0.00041095,31]
[334286791,1722894649881,-500.0,0.00041095,31]
[334286792,1722894649890,-533.85,0.00041095,31]
[334286793,1722894649999,-500.0,0.00041095,31]
[334286794,1722894650010,-500.0,0.00041095,31]
[334286795,1722894650019,-500.0,0.00041095,31]
[334286796,1722894650029,-553.89,0.00041095,31]
[334286797,1722894650041,-500.0,0.00041095,31]
[334286798,1722894650050,-515.14,0.00041095,31]
[334286799,1722894650060,-500.0,0.00041095,31]
[334286800,1722894650070,-500.0,0.00041095,31]
[334286801,1722894650080,-500.0,0.00041095,31]
[334286802,1722894650090,-500.0,0.00041095,31]
[334286803,1722894650100,-500.0,0.00041095,31]
[334286804,1722894650110,-500.0,0.00041095,31]
[334286805,1722894650120,-5587.68,0.00041095,31]
[334286806,1722894650130,-500.0,0.00041095,31]
[334286807,1722894650139,-500.0,0.00041095,31]
[334286808,1722894650148,-500.0,0.00041095,31]
[334286809,1722894650158,-500.0,0.00041095,31]
[334286810,1722894650167,-500.0,0.00041095,31]
[334286811,1722894650176,-500.0,0.00041095,31]
[334286812,1722894650185,-500.0,0.00041095,31]
[334286813,1722894650194,-500.0,0.00041095,31]
[334286814,1722894650205,-500.0,0.00041095,31]
[334286815,1722894650215,-572.14,0.00041095,31]
[334286816,1722894650224,-500.0,0.00041095,31]
[334286817,1722894650234,-500.0,0.00041095,31]
[334286818,1722894650243,-500.0,0.00041095,31]
[334286819,1722894650253,-500.0,0.00041095,31]
[334286820,1722894650263,-1311.39,0.00041095,31]
[334286821,1722894650272,-500.0,0.00041095,31]
[334286822,1722894650281,-500.0,0.00041095,31]
[334286823,1722894650291,-500.0,0.00041095,31]
[334286824,1722894650300,-500.0,0.00041095,31]
[334286825,1722894650310,-500.0,0.00041095,31]
[334286826,1722894650319,-500.0,0.00041095,31]
[334286827,1722894650328,-500.0,0.00041095,31]
[334286828,1722894650339,-500.0,0.00041095,31]
[334286829,1722894650349,-500.0,0.00041095,31]
[334286830,1722894650358,-500.0,0.00041095,31]
[334286831,1722894650368,-500.0,0.00041095,31]
[334286832,1722894650378,-500.0,0.00041095,31]
[334286833,1722894650388,-500.0,0.00041095,31]
[334286834,1722894650397,-500.0,0.00041095,31]
[334286835,1722894650407,-500.0,0.00041095,31]
[334286836,1722894650417,-500.0,0.00041095,31]
[334286837,1722894650426,-500.0,0.00041095,31]
[334286838,1722894650435,-500.0,0.00041095,31]
[334286839,1722894650445,-500.38920604,0.00041095,31]
[334286840,1722894650455,-500.0,0.00041095,31]
[334286841,1722894650464,-500.0,0.00041095,31]
[334286842,1722894650474,-500.0,0.00041095,31]
[334286843,1722894650484,-500.0,0.00041095,31]
[334286844,1722894650494,-500.0,0.00041095,31]
[334286845,1722894650503,-500.0,0.00041095,31]
[334286846,1722894650513,-500.0,0.00041095,31]
[334286847,1722894650523,-500.0,0.00041095,31]
[334286848,1722894650532,-500.0,0.00041095,31]
[334286849,1722894650542,-500.0,0.00041095,31]
[334286850,1722894650552,-500.0,0.00041095,31]
[334286851,1722894650562,-500.0,0.00041095,31]
[334286852,1722894650571,-604.89677177,0.00041095,31]
[334286853,1722894650582,-500.0,0.00041095,31]
[334286854,1722894650592,-500.0,0.00041095,31]
[334286855,1722894650602,-500.0,0.00041095,31]
[334286856,1722894650611,-500.0,0.00041095,31]
[334286857,1722894650621,-500.0,0.00041095,31]
[334286858,1722894650630,-202.21917248,0.00041095,31]
[334286859,1722894650640,-538.64,0.00041095,31]
[334286860,1722894650649,-500.0,0.00041095,31]
[334286861,1722894650658,-500.0,0.00041095,31]
[334286862,1722894650668,-500.0,0.00041095,31]
[334286863,1722894650678,-171.20960838,0.00041095,31]
[334286864,1722894650687,-500.0,0.00041095,31]
[334286865,1722894650697,-500.0,0.00041095,31]
[334286866,1722894650708,-530.78722556,0.00041095,31]
[334286867,1722894650717,-500.0,0.00041095,31]
[334286868,1722894650727,-500.0,0.00041095,31]
[334286869,1722894650737,-500.0,0.00041095,31]
[334286870,1722894650746,-500.0,0.00041095,31]
[334286871,1722894650755,-500.0,0.00041095,31]
[334286872,1722894650766,-345.54163527,0.00041095,31]
[334286873,1722894650775,-500.0,0.00041095,31]
[334286874,1722894650785,-500.0,0.00041095,31]
[334286875,1722894650794,-500.0,0.00041095,31]
[334286876,1722894650804,-500.0,0.00041095,31]
[334286877,1722894650813,-501.62100519,0.00041095,2]
[334286878,1722894650822,-591.16825204,0.00041095,31]
[334286879,1722894650832,-500.0,0.00041095,31]
[334286880,1722894650841,-500.0,0.00041095,31]
[334286881,1722894650851,-197.57084315,0.00041095,31]
[334286882,1722894650860,-500.0,0.00041095,31]
[334286883,1722894650870,-500.0,0.00041095,31]
[334286884,1722894650880,-500.0,0.00041095,31]
[334286885,1722894650890,-500.0,0.00041095,31]
[334286886,1722894650900,-500.0,0.00041095,31]
[334286887,1722894650909,-500.0,0.00041095,31]
[334286888,1722894650919,-500.0,0.00041095,31]
[334286889,1722894650928,-500.0,0.00041095,31]
[334286890,1722894650937,-565.42832127,0.00041095,20]
[334286891,1722894650947,-500.0,0.00041095,31]
[334286892,1722894650956,-500.0,0.00041095,31]
[334286893,1722894650965,-500.0,0.00041095,31]
[334286894,1722894650974,-500.0,0.00041095,31]
[334286895,1722894650983,-500.0,0.00041095,31]
[334286896,1722894650993,-500.0,0.00041095,31]
[334286897,1722894651002,-500.0,0.00041095,31]
[334286898,1722894651012,-500.0,0.00041095,31]
[334286899,1722894651022,-500.0,0.00041095,31]
[334286900,1722894651032,-542.43,0.00041095,31]
[334286901,1722894651045,-500.0,0.00041095,31]
[334286902,1722894651055,-500.0,0.00041095,31]
[334286903,1722894651064,-500.0,0.00041095,31]
[334286904,1722894651074,-214.18988649,0.00041095,31]
[334286905,1722894651085,-500.0,0.00041095,31]
[334286906,1722894651095,-8042.62,0.00041095,31]
[334286907,1722894651105,-500.0,0.00041095,31]
[334286908,1722894651116,-500.0,0.00041095,31]
[334286909,1722894651126,-500.0,0.00041095,31]
[334286910,1722894651136,-500.0,0.00041095,31]
[334286911,1722894651146,-500.0,0.00041095,31]
[334286912,1722894651155,-500.49980524,0.00041095,31]
[334286913,1722894651165,-500.0,0.00041095,31]
[334286914,1722894651174,-500.0,0.00041095,31]
[334286915,1722894651183,-500.0,0.00041095,31]
[334286916,1722894651193,-500.0,0.00041095,31]
[334286917,1722894651203,-500.0,0.00041095,31]
[334286918,1722894651212,-500.0,0.00041095,31]
[334286919,1722894651222,-500.0,0.00041095,31]
[334286920,1722894651231,-500.0,0.00041095,31]
[334286921,1722894651240,-500.0,0.00041095,31]
[334286922,1722894651250,-500.0,0.00041095,31]
[334286923,1722894651259,-500.0,0.00041095,31]
[334286924,1722894651270,-500.0,0.00041095,31]
[334286925,1722894651280,-906.62,0.00041095,21]
[334286926,1722894651290,-500.0,0.00041095,31]
[334286927,1722894651299,-500.0,0.00041095,31]
[334286928,1722894651308,-500.0,0.00041095,31]
[334286929,1722894651318,-500.0,0.00041095,31]
[334286930,1722894651327,-500.0,0.00041095,31]
[334286931,1722894651339,-500.0,0.00041095,31]
[334286932,1722894651348,-500.0,0.00041095,31]
[334286933,1722894651358,-500.0,0.00041095,31]
[334286934,1722894651367,-500.0,0.00041095,31]
[334286935,1722894651376,-500.0,0.00041095,31]
[334286936,1722894651386,-528.49,0.00041095,31]
[334286937,1722894651395,-500.0,0.00041095,31]
[334286938,1722894651405,-500.0,0.00041095,31]
[334286939,1722894651415,-500.0,0.00041095,31]
[334286940,1722894651424,-500.0,0.00041095,31]
[334286941,1722894651434,-500.0,0.00041095,31]
[334286942,1722894651446,-500.0,0.00041095,31]
[334286943,1722894651456,-514.44022575,0.00041095,31]
[334286944,1722894651466,-500.0,0.00041095,31]
[334286945,1722894651475,-207.3987433,0.00041095,31]
[334286946,1722894651485,-500.0,0.00041095,31]
[334286947,1722894651495,-500.0,0.00041095,31]
[334286948,1722894651504,-500.0,0.00041095,31]
[334286949,1722894651514,-500.0,0.00041095,31]
[334286950,1722894651523,-500.0,0.00041095,31]
[334286951,1722894651533,-500.0,0.00041095,31]
[334286952,1722894651542,-500.0,0.00041095,31]
[334286953,1722894651552,-500.0,0.00041095,31]
[334286954,1722894651562,-198.83555248,0.00041095,31]
[334286955,1722894651571,-554.96866896,0.00041095,31]
[334286956,1722894651581,-500.0,0.00041095,31]
[334286957,1722894651597,-500.0,0.00041095,31]
[334286958,1722894651607,-500.0,0.00041095,31]
[334286959,1722894651616,-500.0,0.00041095,31]
[334286960,1722894651625,-205.64232317,0.00041095,31]
[334286961,1722894651635,-500.0,0.00041095,31]
[334286962,1722894651643,-500.0,0.00041095,31]
[334286963,1722894651652,-500.0,0.00041095,31]
[334286964,1722894651662,-500.0,0.00041095,31]
[334286965,1722894651671,-500.0,0.00041095,31]
[334286966,1722894651682,-500.0,0.00041095,31]
[334286967,1722894651691,-282.62294655,0.00041095,31]
[334286968,1722894651700,-500.0,0.00041095,31]
[334286969,1722894651710,-500.0,0.00041095,31]
[334286970,1722894651719,-455.85339617,0.00041095,31]
[334286971,1722894651728,-500.0,0.00041095,31]
[334286972,1722894651737,-500.0,0.00041095,31]
[334286973,1722894651746,-500.0,0.00041095,31]
[334286974,1722894651755,-500.0,0.00041095,31]
[334286975,1722894651764,-500.0,0.00041095,31]
[334286976,1722894651773,-168.37481145,0.00041095,31]
[334286977,1722894652323,-331.62518855,0.00041095,31]
[334286978,1722894652333,-500.0,0.00041095,31]
[334286979,1722894652342,-500.0,0.00041095,31]
[334286980,1722894652352,-500.0,0.00041095,31]
[334286981,1722894652363,-158.93889665,0.00041095,31]
[334286982,1722894652372,-500.0,0.00041095,31]
[334286983,1722894652382,-500.0,0.00041095,31]
[334286984,1722894652392,-500.0,0.00041095,31]
[334286985,1722894652402,-500.0,0.00041095,31]
[334286986,1722894652412,-500.0,0.00041095,31]
[334286987,1722894652421,-164.15737138,0.00041095,31]
[334286988,1722894652431,-500.0,0.00041095,31]
[334286989,1722894652442,-500.0,0.00041095,31]
[334286990,1722894652452,-500.0,0.00041095,31]
[334286991,1722894652461,-500.0,0.00041095,31]
[334286992,1722894652470,-500.0,0.00041095,31]
[334286993,1722894652480,-500.0,0.00041095,31]
[334286994,1722894652489,-500.0,0.00041095,31]
[334286995,1722894652498,-500.0,0.00041095,31]
[334286996,1722894652508,-137.08973062,0.00041095,31]
[334286997,1722894652527,-1737.76934967,0.00033787,4]
[334286999,1722894756635,1483.05025513,0.00027,120]
[334287000,1722894764531,303.35400214,0.00027,120]
[334287014,1722895542154,-163.79464,0.00014247,2]
[334287015,1722895542178,-175.861702,0.00014247,2]
[334287016,1722895542199,-250.0,0.00019516,2]
[334287017,1722895542221,-549.607194,0.00019765,2]
[334287018,1722895542243,-170.931454,0.00020113,2]
[334287019,1722895542266,-2187.77964361,0.00020132,2]
[334287020,1722895559123,-2984.50557505,0.00019999,2]
[334287024,1722895628106,-183.333333,0.00019245,2]
[334287025,1722895628129,-145.55868016,0.00019298,2]
[334287026,1722895628273,-37.77465284,0.00019298,2]
[334287027,1722895628295,-183.333333,0.00019351,2]
[334287028,1722895628316,-183.333333,0.00019404,2]
[334287029,1722895628338,-183.333333,0.00019457,2]
[334287030,1722895628365,-183.333333,0.00019509,2]
[334287031,1722895628387,-87.79460543,0.00019547,2]
[334287032,1722895629091,-588.60692424,0.00019547,2]
[334287033,1722895629119,-4109.35680925,0.00019547,2]
[334287035,1722895641121,-861.09593091,0.00019547,2]
[334287036,1722895643093,-668.88260507,0.00019547,2]
[334287037,1722895644108,-5274.85653218,0.00019547,2]
[334287039,1722895745103,-23346.09468165,0.00018845,2]
[334287040,1722895748102,-1553.90531835,0.00018845,2]
[334287041,1722895748125,-274.803597,0.00018882,2]
[334287042,1722895748148,-42341.71391136,0.00019177,2]
[334287043,1722895748169,-404.21286744,0.0001945,2]
[334287044,1722895748196,-500.0,0.0001945,2]
[334287045,1722895748219,-500.0,0.0001945,2]
[334287046,1722895748240,-500.0,0.0001945,2]
[334287047,1722895748263,-500.0,0.0001945,2]
[334287048,1722895748285,-500.0,0.0001945,2]
[334287049,1722895748305,-438.03933877,0.0001945,2]
[334287050,1722895748326,-500.0,0.0001945,2]
[334287051,1722895748348,-575.72669752,0.0001945,2]
[334287052,1722895748374,-500.0,0.0001945,2]
[334287053,1722895748407,-500.0,0.0001945,2]
[334287054,1722895748438,-500.0,0.0001945,2]
[334287055,1722895748466,-500.0,0.0001945,2]
[334287056,1722895748491,-500.0,0.0001945,2]
[334287057,1722895748515,-277.18370616,0.00019477,2]
[334287058,1722895748536,-1167.94419204,0.00019547,2]
[334287059,1722895748559,-3601.91477368,0.00019547,2]
[334287060,1722895748580,-1438.29474334,0.00019547,2]
[334287061,1722895748602,-183.333333,0.00019562,2]
[334287062,1722895748623,-183.333333,0.00019615,2]
[334287063,1722895748646,-183.333333,0.00019668,2]
[334287064,1722895748668,-183.333333,0.00019721,2]
[334287065,1722895748690,-183.333333,0.00019773,2]
[334287066,1722895748713,-183.333333,0.00019826,2]
[334287067,1722895748735,-183.333333,0.00019879,2]
[334287068,1722895748757,-183.333333,0.00019932,2]
[334287069,1722895748779,-183.333333,0.00019985,2]
[334287070,1722895748800,-1492.22608245,0.0002,2]
[334287071,1722895748822,-183.333333,0.00020037,2]
[334287072,1722895748844,-183.333333,0.0002009,2]
[334287073,1722895748866,-183.333333,0.00020143,2]
[334287074,1722895748887,-183.333333,0.00020196,2]
[334287075,1722895748909,-183.333333,0.00020249,2]
[334287076,1722895748929,-943.11178693,0.0002028,2]
[334287077,1722895748950,-154.72922386,0.0002028,2]
[334287078,1722895748970,-154.72922386,0.0002028,2]
[334287079,1722895748991,-163.79464,0.00020707,2]
[334287080,1722895749012,-300.0064731,0.00020721,2]
[334287081,1722895749033,-154.63660398,0.00020721,2]
[334287082,1722895749053,-206.83881641,0.0002149,5]
[334287083,1722895749074,-630.0,0.00021532,2]
[334287084,1722895749095,-305.42819777,0.00021589,2]
[334287085,1722895749115,-676.7785006,0.00021642,2]
[334287086,1722895749137,-354.9512821,0.00021906,2]
[334287087,1722895749157,-302.18418731,0.00022,2]
[334287088,1722895749177,-302.18418731,0.0002222,2]
[334287089,1722895749198,-302.18418731,0.0002244,2]
[334287090,1722895749218,-302.18418731,0.0002266,2]
[334287091,1722895749239,-664.67052677,0.00022791,2]
[334287092,1722895749259,-302.18418731,0.0002288,2]
[334287093,1722895749284,-453.27628096,0.000231,4]
[334287094,1722895749304,-453.27628096,0.0002332,4]
[334287095,1722895749325,-453.27628096,0.0002354,4]
[334287096,1722895749345,-154.79103211,0.00023693,2]
[334287097,1722895749365,-1849.61574778,0.00023693,2]
[334287098,1722895749386,-453.27628096,0.0002376,4]
[334287099,1722895749411,-622.23352634,0.00023931,2]
[334287100,1722895749433,-453.27628096,0.0002398,4]
[334287101,1722895749454,-230.37,0.00024077,3]
[334287102,1722895749477,-691.14,0.00024077,3]
[334287103,1722895749498,-154.79103211,0.00024241,2]
[334287104,1722895749520,-460.75,0.00024519,3]
[334287105,1722895749541,-1676.11058833,0.00024529,2]
[334287106,1722895749563,-380.0,0.00024658,2]
[334287107,1722895749584,-200.0,0.00024658,15]
[334287108,1722895749608,-552.9,0.00024752,3]
[334287109,1722895749635,-10642.26,0.0002498,3]
[334287110,1722895749658,-8368.65384771,0.0002499,3]
[334287111,1722895749678,-154.5286875,0.00025,2]
[334287112,1722895749699,-5455.22524611,0.00025,30]
[334287113,1722895750097,-245.16608057,0.00019999,2]
[334287114,1722895750119,-2205.28774848,0.00025,30]
[334287115,1722895755081,-274.83963099,0.00019547,2]
[334287116,1722895755104,-319.92838575,0.00025,30]
[334287118,1722895779952,197.97499817,0.00023693,2]
[334287119,1722895779975,189.93381828,0.00023693,2]
[334287138,1722895832814,-154.80721731,0.00021916,2]
[334287139,1722895832824,-223.93432146,0.00023693,2]
[334287140,1722895832897,-418.89313081,0.00023693,2]
[334287171,1722895838140,-603.69198274,0.00023693,2]
[334287172,1722895838151,-1321.3576048,0.00023693,2]
[334287173,1722895838160,-154.74467129,0.00023693,15]
[334287174,1722895838170,-620.11167632,0.00025128,2]
[334287175,1722895838179,-460.74,0.00025447,3]
[334287176,1722895838189,-921.5,0.00025889,3]
[334287177,1722895838198,-402.3465429,0.00026575,2]
[334287178,1722895838207,-881.47696693,0.00026589,2]
[334287179,1722895838217,-152.27,0.000266,31]
[334287180,1722895838226,-152.27,0.000266,31]
[334287181,1722895838235,-152.27,0.000266,31]
[334287182,1722895838245,-49.56053554,0.000266,31]
[334287183,1722895838257,-102.70946446,0.000266,31]
[334287184,1722895838267,-152.27,0.000266,31]
[334287185,1722895838277,-152.27,0.000266,31]
[334287186,1722895838286,-152.27,0.000266,31]
[334287188,1722895838296,-152.27,0.000266,31]
[334287190,1722895838305,-152.27,0.000266,31]
[334287192,1722895838314,-152.27,0.000266,31]
[334287194,1722895838323,-152.27,0.000266,31]
[334287195,1722895838332,-152.27,0.000266,31]
[334287196,1722895838342,-152.27,0.000266,31]
[334287198,1722895838351,-152.27,0.000266,31]
[334287199,1722895838360,-152.27,0.000266,31]
[334287200,1722895838370,-152.27,0.000266,31]
[334287201,1722895838379,-152.27,0.000266,31]
[334287202,1722895838389,-160.54991199,0.00026604,2]
[334287203,1722895838398,-160.54991199,0.00026604,2]
[334287204,1722895838407,-33.4906296,0.00026683,2]
[334287205,1722895838420,-466.5093704,0.00026683,2]
[334287206,1722895838432,-154.59033561,0.00026769,2]
[334287207,1722895838441,-638.31575376,0.000269,2]
[334287208,1722895838453,-1374.28457667,0.000269,2]
[334287209,1722895838462,-155.59865243,0.00027,2]
[334287210,1722895838471,-16262.73432514,0.00027,14]
[334287211,1722895838480,-5277.77580984,0.00027,2]
[334287212,1722895838489,-189.52144051,0.00027,2]
[334287213,1722895838499,-171.25809029,0.00027,2]
[334287214,1722895838511,-163.79464,0.00027167,2]
[334287215,1722895838521,-230.63629972,0.00027939,2]
[334287216,1722895838530,-493.11548209,0.00027939,2]
[334287217,1722895838539,-32550.43408131,0.0002794,30]
[334287225,1722895842733,-586.09517024,0.00021916,2]
[334287228,1722895842747,-1318.74200669,0.00021916,2]
[334287230,1722895842757,-154.96065508,0.00025,2]
[334287232,1722895842767,-4297.29627103,0.0002794,30]
[334287244,1722895843273,-1588.95344766,0.0002794,30]
[334287245,1722895843283,-274.803597,0.00028323,2]
[334287246,1722895843293,-140.22020249,0.0003,120]
[334287248,1722895843305,-10.77979751,0.0003,120]
[334287249,1722895843315,-151.0,0.0003,120]
[334287250,1722895843325,-263.0,0.0003,2]
[334287251,1722895843335,-983.72017249,0.00030424,2]
[334287252,1722895843348,-1028.8801579,0.00030424,2]
[334287253,1722895843358,-8368.65384771,0.0003049,4]
[334287254,1722895843367,-152.27,0.000305,31]
[334287255,1722895843377,-152.27,0.000305,31]
[334287256,1722895843386,-152.27,0.000305,31]
[334287257,1722895843396,-152.27,0.000305,31]
[334287258,1722895843405,-152.27,0.000305,31]
[334287259,1722895843416,-152.27,0.000305,31]
[334287260,1722895843429,-152.27,0.000305,31]
[334287261,1722895843439,-152.27,0.000305,31]
[334287262,1722895843449,-152.27,0.000305,31]
[334287263,1722895843458,-152.27,0.000305,31]
[334287264,1722895843468,-152.27,0.000305,31]
[334287265,1722895843478,-152.27,0.000305,31]
[334287266,1722895843487,-152.27,0.000305,31]
[334287267,1722895843497,-152.27,0.000305,31]
[334287268,1722895843511,-152.27,0.000305,31]
[334287269,1722895843523,-152.27,0.000305,31]
[334287270,1722895843532,-152.27,0.000305,31]
[334287271,1722895843543,-151.0,0.00031534,120]
[334287272,1722895843553,-1000.966417,0.000316,7]
[334287273,1722895843564,-723.1345264,0.00031841,7]
[334287274,1722895843574,-151.0,0.00032301,120]
[334287275,1722895843585,-151.0,0.00033068,120]
[334287276,1722895843595,-163.79464,0.00033626,2]
[334287277,1722895843605,-284.83809153,0.00033787,3]
[334287278,1722895843615,-2012.60033039,0.00033948,2]
[334287279,1722895843624,-152.27,0.000344,31]
[334287280,1722895843634,-152.27,0.000344,31]
[334287281,1722895843644,-152.27,0.000344,31]
[334287282,1722895843654,-152.27,0.000344,31]
[334287283,1722895843663,-152.27,0.000344,31]
[334287284,1722895843673,-152.27,0.000344,31]
[334287285,1722895843683,-152.27,0.000344,31]
[334287286,1722895843692,-152.27,0.000344,31]
[334287287,1722895843702,-152.27,0.000344,31]
[334287288,1722895843713,-152.27,0.000344,31]
[334287289,1722895843723,-152.27,0.000344,31]
[334287290,1722895843733,-152.27,0.000344,31]
[334287291,1722895843744,-152.27,0.000344,31]
[334287292,1722895843754,-152.27,0.000344,31]
[334287293,1722895843764,-152.27,0.000344,31]
[334287294,1722895843775,-152.27,0.000344,31]
[334287295,1722895843784,-152.27,0.000344,31]
[334287296,1722895843794,-151.0,0.00034603,120]
[334287297,1722895843803,-151.0,0.00034603,120]
[334287298,1722895843814,-150.0,0.000356,24]
[334287299,1722895843827,-151.0,0.00036137,120]
[334287300,1722895843837,-151.0,0.00036904,120]
[334287301,1722895843846,-217.1776358,0.00037078,2]
[334287302,1722895843856,-2012.60033039,0.00037471,2]
[334287303,1722895843866,-151.0,0.00037671,120]
[334287304,1722895843876,-9164.16,0.0003829,3]
[334287305,1722895843885,-152.27,0.000383,31]
[334287306,1722895843895,-152.27,0.000383,31]
[334287307,1722895843906,-152.27,0.000383,31]
[334287308,1722895843915,-152.27,0.000383,31]
[334287309,1722895843925,-152.27,0.000383,31]
[334287310,1722895843935,-152.27,0.000383,31]
[334287311,1722895843944,-152.27,0.000383,31]
[334287312,1722895843954,-152.27,0.000383,31]
[334287313,1722895843964,-152.27,0.000383,31]
[334287314,1722895843974,-152.27,0.000383,31]
[334287315,1722895843984,-152.27,0.000383,31]
[334287316,1722895843995,-152.27,0.000383,31]
[334287318,1722895844005,-152.27,0.000383,31]
[334287319,1722895844015,-152.27,0.000383,31]
[334287320,1722895844027,-152.27,0.000383,31]
[334287321,1722895844037,-152.27,0.000383,31]
[334287322,1722895844047,-152.27,0.000383,31]
[334287323,1722895844057,-3868.0,0.00039,120]
[334287324,1722895844067,-151.0,0.00039205,120]
[334287325,1722895844077,-151.0,0.00039205,120]
[334287326,1722895844086,-314.8661027,0.00039452,2]
[334287327,1722895844096,-3868.0,0.0004,120]
[334287328,1722895844105,-3868.0,0.0004,120]
[334287329,1722895844115,-200.0,0.0004,2]
[334287330,1722895844125,-213.275,0.00040071,2]
[334287331,1722895844135,-150.0,0.00040071,2]
[334287332,1722895844144,-150.0,0.00040071,2]
[334287333,1722895844154,-507.0,0.00040071,2]
[334287334,1722895844163,-163.79464,0.00040086,2]
[334287335,1722895844173,-502.01,0.00040547,30]
[334287336,1722895844182,-502.01,0.00040684,32]